[Event "Titled Tuesday Blitz April 12 Early 2022"]
[White "Kostina, Nadezhda"]
[Black "Avramidou, Anastasia"]
[WhiteFideId "4195876"]
[BlackFideId "4239873"]
[WhiteElo "1982"]
[BlackElo "2183"]
[Result "0-1"]
[Round "06"]
[TimeControl "180+1"]
[Date "2022.04.13"]
[WhiteClock "0:00:01"]
[BlackClock "0:00:04"]

1. e4 {[%clk 0:03:00]}  c6 {[%clk 0:02:55]} 2. d4 {[%clk 0:03:00]}  d5 {[%clk 0:02:55]} 3. e5 {[%clk 0:03:00]}  c5 {[%clk 0:02:55]} 4. dxc5 {[%clk 0:02:57]}  Nc6 {[%clk 0:02:53]} 5. f4 {[%clk 0:02:57]}  Nh6 {[%clk 0:02:53]} 6. Nf3 {[%clk 0:02:56]}  Bg4 {[%clk 0:02:52]} 7. h3 {[%clk 0:02:55]}  Bxf3 {[%clk 0:02:52]} 8. Qxf3 {[%clk 0:02:55]}  e6 {[%clk 0:02:53]} 9. Be3 {[%clk 0:02:49]}  Nf5 {[%clk 0:02:53]} 10. Bf2 {[%clk 0:02:44]}  Qa5+ {[%clk 0:02:31]} 11. c3 {[%clk 0:02:42]}  Bxc5 {[%clk 0:02:31]} 12. b4 {[%clk 0:02:33]}  Bxf2+ {[%clk 0:02:29]} 13. Qxf2 {[%clk 0:02:31]}  Qb6 {[%clk 0:02:28]} 14. Bd3 {[%clk 0:02:29]}  Qxf2+ {[%clk 0:02:19]} 15. Kxf2 {[%clk 0:02:28]}  Nfe7 {[%clk 0:02:20]} 16. Nd2 {[%clk 0:02:23]}  O-O {[%clk 0:02:17]} 17. Nb3 {[%clk 0:02:17]}  Rac8 {[%clk 0:02:09]} 18. Rhc1 {[%clk 0:02:03]}  b6 {[%clk 0:02:06]} 19. a4 {[%clk 0:02:01]}  f6 {[%clk 0:02:05]} 20. exf6 {[%clk 0:01:59]}  Rxf6 {[%clk 0:02:05]} 21. Ke3 {[%clk 0:01:50]}  Rcf8 {[%clk 0:01:56]} 22. b5 {[%clk 0:01:41]}  Na5 {[%clk 0:01:22]} 23. Nd4 {[%clk 0:01:33]}  Nc8 {[%clk 0:00:54]} 24. g4 {[%clk 0:01:27]}  Nd6 {[%clk 0:00:53]} 25. Rf1 {[%clk 0:01:16]}  Ndc4+ {[%clk 0:00:49]} 26. Ke2 {[%clk 0:00:58]}  Nd6 {[%clk 0:00:48]} 27. g5 {[%clk 0:00:49]}  R6f7 {[%clk 0:00:48]} 28. Rae1 {[%clk 0:00:37]}  Rxf4 {[%clk 0:00:25]} 29. Rxf4 {[%clk 0:00:28]}  Rxf4 {[%clk 0:00:26]} 30. Nxe6 {[%clk 0:00:28]}  Rxa4 {[%clk 0:00:19]} 31. Rf1 {[%clk 0:00:28]}  Ra2+ {[%clk 0:00:19]} 32. Ke3 {[%clk 0:00:27]}  Nf7 {[%clk 0:00:09]} 33. g6 {[%clk 0:00:26]}  hxg6 {[%clk 0:00:05]} 34. Bxg6 {[%clk 0:00:25]}  Nc4+ {[%clk 0:00:06]} 35. Kf4 {[%clk 0:00:16]}  Ncd6 {[%clk 0:00:05]} 36. Kg4 {[%clk 0:00:14]}  Ra4+ {[%clk 0:00:06]} 37. Kh5 {[%clk 0:00:13]}  Rc4 {[%clk 0:00:06]} 38. Ng5 {[%clk 0:00:10]}  Nxg5 {[%clk 0:00:04]} 39. Kxg5 {[%clk 0:00:10]}  Rxc3 {[%clk 0:00:04]} 40. h4 {[%clk 0:00:08]}  Rc5 {[%clk 0:00:03]} 41. h5 {[%clk 0:00:07]}  d4+ {[%clk 0:00:04]} 42. Kg4 {[%clk 0:00:07]}  Rxb5 {[%clk 0:00:03]} 43. Re1 {[%clk 0:00:05]}  Kf8 {[%clk 0:00:03]} 44. Re6 {[%clk 0:00:05]}  Rd5 {[%clk 0:00:04]} 45. Bd3 {[%clk 0:00:03]}  Nf7 {[%clk 0:00:03]} 46. Rc6 {[%clk 0:00:02]}  Rd7 {[%clk 0:00:03]} 47. Rc8+ {[%clk 0:00:01]}  Ke7 {[%clk 0:00:04]} 48. Kf4 {[%clk 0:00:01]}  Nd6 {[%clk 0:00:04]} 0-1


[Site "https://www.chess.com"]

[Event "Titled Tuesday Blitz April 12 Early 2022"]
[White "Lauridsen, Jesper Morch"]
[Black "Bongo Akanga Ndjila, Barthelemy"]
[WhiteFideId "1401890"]
[BlackFideId "10609431"]
[WhiteElo "2315"]
[BlackElo "1768"]
[Result "1-0"]
[Round "06"]
[TimeControl "180+1"]
[Date "2022.04.13"]
[WhiteClock "0:01:29"]
[BlackClock "0:01:41"]

1. e4 {[%clk 0:02:54]}  c6 {[%clk 0:02:59]} 2. d4 {[%clk 0:02:54]}  d5 {[%clk 0:03:00]} 3. Nc3 {[%clk 0:02:54]}  dxe4 {[%clk 0:03:00]} 4. Nxe4 {[%clk 0:02:54]}  Nf6 {[%clk 0:03:00]} 5. Nxf6+ {[%clk 0:02:53]}  gxf6 {[%clk 0:03:01]} 6. Bc4 {[%clk 0:02:45]}  Bf5 {[%clk 0:03:01]} 7. Ne2 {[%clk 0:02:44]}  e6 {[%clk 0:03:01]} 8. Ng3 {[%clk 0:02:43]}  Bg6 {[%clk 0:03:01]} 9. h4 {[%clk 0:02:41]}  h5 {[%clk 0:03:02]} 10. c3 {[%clk 0:02:33]}  f5 {[%clk 0:02:59]} 11. Qe2 {[%clk 0:02:32]}  Bd6 {[%clk 0:02:52]} 12. Bg5 {[%clk 0:02:31]}  Qd7 {[%clk 0:02:46]} 13. O-O {[%clk 0:02:30]}  O-O {[%clk 0:02:44]} 14. Rae1 {[%clk 0:02:28]}  Re8 {[%clk 0:02:43]} 15. Bf6 {[%clk 0:02:26]}  Bxg3 {[%clk 0:02:29]} 16. fxg3 {[%clk 0:02:17]}  Qc7 {[%clk 0:02:23]} 17. Qd2 {[%clk 0:02:05]}  Nd7 {[%clk 0:02:23]} 18. Qg5 {[%clk 0:01:46]}  Nxf6 {[%clk 0:02:23]} 19. Qxf6 {[%clk 0:01:46]}  Qe7 {[%clk 0:02:23]} 20. Rxe6 {[%clk 0:01:40]}  fxe6 {[%clk 0:02:11]} 21. Qxg6+ {[%clk 0:01:39]}  Kf8 {[%clk 0:01:49]} 22. Rxf5+ {[%clk 0:01:32]}  exf5 {[%clk 0:01:41]} 23. Qg8# {[%clk 0:01:29]} 1-0


[Site "https://www.chess.com"]

[Event "Titled Tuesday Blitz April 12 Early 2022"]
[White "Lazavik, Denis"]
[Black "Grischuk, Alexander"]
[WhiteFideId "13515110"]
[BlackFideId "4126025"]
[WhiteElo "2437"]
[BlackElo "2762"]
[Result "0-1"]
[Round "06"]
[TimeControl "180+1"]
[Date "2022.04.12"]
[WhiteClock "0:00:09"]
[BlackClock "0:00:07"]

1. d4 {[%clk 0:03:00]}  e6 {[%clk 0:02:59]} 2. c4 {[%clk 0:03:00]}  b6 {[%clk 0:02:59]} 3. Nf3 {[%clk 0:02:56]}  Bb7 {[%clk 0:02:58]} 4. g3 {[%clk 0:02:56]}  Bb4+ {[%clk 0:02:56]} 5. Bd2 {[%clk 0:02:56]}  Bxf3 {[%clk 0:02:56]} 6. exf3 {[%clk 0:02:56]}  Bxd2+ {[%clk 0:02:56]} 7. Qxd2 {[%clk 0:02:55]}  Ne7 {[%clk 0:02:56]} 8. Nc3 {[%clk 0:02:54]}  d5 {[%clk 0:02:38]} 9. O-O-O {[%clk 0:02:45]}  c6 {[%clk 0:02:37]} 10. Kb1 {[%clk 0:02:44]}  Nd7 {[%clk 0:02:32]} 11. cxd5 {[%clk 0:02:43]}  cxd5 {[%clk 0:02:32]} 12. h4 {[%clk 0:02:41]}  a6 {[%clk 0:02:29]} 13. h5 {[%clk 0:02:34]}  h6 {[%clk 0:02:29]} 14. Bd3 {[%clk 0:02:30]}  b5 {[%clk 0:02:27]} 15. Ne2 {[%clk 0:02:29]}  Nb6 {[%clk 0:02:24]} 16. b3 {[%clk 0:02:28]}  Qd6 {[%clk 0:02:21]} 17. Rc1 {[%clk 0:02:25]}  Nd7 {[%clk 0:01:28]} 18. g4 {[%clk 0:02:12]}  Rc8 {[%clk 0:01:19]} 19. f4 {[%clk 0:02:05]}  Rxc1+ {[%clk 0:01:18]} 20. Rxc1 {[%clk 0:02:05]}  Nb8 {[%clk 0:01:08]} 21. f5 {[%clk 0:01:46]}  exf5 {[%clk 0:00:56]} 22. Bxf5 {[%clk 0:01:45]}  Nbc6 {[%clk 0:00:55]} 23. Bd3 {[%clk 0:01:42]}  O-O {[%clk 0:00:53]} 24. g5 {[%clk 0:01:33]}  Re8 {[%clk 0:00:41]} 25. Rg1 {[%clk 0:01:32]}  Kf8 {[%clk 0:00:41]} 26. f4 {[%clk 0:01:24]}  Ng8 {[%clk 0:00:26]} 27. Bh7 {[%clk 0:01:09]}  Nge7 {[%clk 0:00:26]} 28. Bc2 {[%clk 0:00:47]}  Ng8 {[%clk 0:00:25]} 29. Ng3 {[%clk 0:00:46]}  Qb4 {[%clk 0:00:20]} 30. Qg2 {[%clk 0:00:44]}  Nxd4 {[%clk 0:00:18]} 31. Bh7 {[%clk 0:00:24]}  Re1+ {[%clk 0:00:17]} 32. Rxe1 {[%clk 0:00:23]}  Qxe1+ {[%clk 0:00:18]} 33. Kb2 {[%clk 0:00:23]}  Ne7 {[%clk 0:00:17]} 34. gxh6 {[%clk 0:00:20]}  gxh6 {[%clk 0:00:17]} 35. Bd3 {[%clk 0:00:12]}  b4 {[%clk 0:00:16]} 36. Bxa6 {[%clk 0:00:09]}  Nec6 {[%clk 0:00:10]} 37. Ne2 {[%clk 0:00:09]}  Qd2+ {[%clk 0:00:09]} 38. Kb1 {[%clk 0:00:08]}  Qc2+ {[%clk 0:00:09]} 39. Ka1 {[%clk 0:00:09]}  Nxe2 {[%clk 0:00:07]} 0-1


[Site "https://www.chess.com"]

[Event "Titled Tuesday Blitz April 12 Early 2022"]
[White "Legenia, Artem"]
[Black "Piliczewski, Bogusz"]
[WhiteFideId "14136945"]
[BlackFideId "1104144"]
[WhiteElo "1936"]
[BlackElo "1896"]
[Result "0-1"]
[Round "06"]
[TimeControl "180+1"]
[Date "2022.04.13"]
[WhiteClock "0:00:04"]
[BlackClock "0:00:51"]

1. c4 {[%clk 0:02:55]}  c6 {[%clk 0:02:58]} 2. b3 {[%clk 0:02:40]}  d5 {[%clk 0:02:58]} 3. cxd5 {[%clk 0:02:40]}  cxd5 {[%clk 0:02:58]} 4. Bb2 {[%clk 0:02:41]}  Nf6 {[%clk 0:02:56]} 5. e3 {[%clk 0:02:41]}  Bf5 {[%clk 0:02:55]} 6. d3 {[%clk 0:02:41]}  Nc6 {[%clk 0:02:55]} 7. a3 {[%clk 0:02:41]}  a5 {[%clk 0:02:52]} 8. Nf3 {[%clk 0:02:41]}  e6 {[%clk 0:02:51]} 9. Be2 {[%clk 0:02:41]}  Be7 {[%clk 0:02:50]} 10. O-O {[%clk 0:02:41]}  O-O {[%clk 0:02:50]} 11. Nbd2 {[%clk 0:02:41]}  b5 {[%clk 0:02:45]} 12. Nh4 {[%clk 0:02:41]}  Bg6 {[%clk 0:02:43]} 13. Nxg6 {[%clk 0:02:41]}  hxg6 {[%clk 0:02:43]} 14. Rc1 {[%clk 0:02:41]}  Qb6 {[%clk 0:02:39]} 15. Nf3 {[%clk 0:02:36]}  Rac8 {[%clk 0:02:37]} 16. Ne5 {[%clk 0:02:34]}  Nxe5 {[%clk 0:02:33]} 17. Bxe5 {[%clk 0:02:29]}  Nd7 {[%clk 0:02:33]} 18. Bb2 {[%clk 0:02:27]}  Rc6 {[%clk 0:02:27]} 19. Rxc6 {[%clk 0:02:25]}  Qxc6 {[%clk 0:02:27]} 20. Qd2 {[%clk 0:02:26]}  Qb6 {[%clk 0:02:21]} 21. Rc1 {[%clk 0:02:25]}  Nc5 {[%clk 0:02:17]} 22. Bd4 {[%clk 0:02:20]}  Nxb3 {[%clk 0:02:01]} 23. Bxb6 {[%clk 0:02:19]}  Nxd2 {[%clk 0:02:01]} 24. Rc2 {[%clk 0:01:49]}  Nb3 {[%clk 0:02:00]} 25. Rc7 {[%clk 0:01:05]}  Bd8 {[%clk 0:01:58]} 26. Rb7 {[%clk 0:01:05]}  Bxb6 {[%clk 0:01:50]} 27. Rxb6 {[%clk 0:01:04]}  Rc8 {[%clk 0:01:44]} 28. g3 {[%clk 0:01:04]}  Rc1+ {[%clk 0:01:33]} 29. Kg2 {[%clk 0:01:04]}  Ra1 {[%clk 0:01:32]} 30. Rxb5 {[%clk 0:00:59]}  Rxa3 {[%clk 0:01:32]} 31. Rb8+ {[%clk 0:00:53]}  Kh7 {[%clk 0:01:31]} 32. d4 {[%clk 0:00:45]}  a4 {[%clk 0:01:26]} 33. Ra8 {[%clk 0:00:39]}  Ra2 {[%clk 0:01:21]} 34. Bb5 {[%clk 0:00:38]}  a3 {[%clk 0:01:19]} 35. Ra7 {[%clk 0:00:32]}  Ra1 {[%clk 0:01:07]} 36. Rxf7 {[%clk 0:00:31]}  a2 {[%clk 0:01:06]} 37. Ra7 {[%clk 0:00:30]}  Nc1 {[%clk 0:00:51]} 38. Ba4 {[%clk 0:00:04]}  Rb1 {[%clk 0:00:51]} 0-1


[Site "https://www.chess.com"]

[Event "Titled Tuesday Blitz April 12 Early 2022"]
[White "Ljukin, Sergei"]
[Black "Avazkhonov, Alikhon"]
[WhiteFideId "14102200"]
[BlackFideId "14208504"]
[WhiteElo "2312"]
[BlackElo "1739"]
[Result "1-0"]
[Round "06"]
[TimeControl "180+1"]
[Date "2022.04.13"]
[WhiteClock "0:00:13"]
[BlackClock "0:00:01"]

1. e4 {[%clk 0:02:55]}  c5 {[%clk 0:02:58]} 2. Nf3 {[%clk 0:02:54]}  d6 {[%clk 0:02:58]} 3. d4 {[%clk 0:02:54]}  cxd4 {[%clk 0:02:59]} 4. Nxd4 {[%clk 0:02:54]}  Nf6 {[%clk 0:03:00]} 5. Nc3 {[%clk 0:02:53]}  a6 {[%clk 0:03:00]} 6. Bg5 {[%clk 0:02:52]}  e6 {[%clk 0:03:01]} 7. f4 {[%clk 0:02:52]}  h6 {[%clk 0:03:01]} 8. Bh4 {[%clk 0:02:52]}  Be7 {[%clk 0:03:01]} 9. Qf3 {[%clk 0:02:52]}  Nbd7 {[%clk 0:03:01]} 10. O-O-O {[%clk 0:02:51]}  Qc7 {[%clk 0:03:01]} 11. Bg3 {[%clk 0:02:51]}  b5 {[%clk 0:03:00]} 12. e5 {[%clk 0:02:52]}  Bb7 {[%clk 0:02:54]} 13. Qe2 {[%clk 0:02:47]}  Nd5 {[%clk 0:02:36]} 14. exd6 {[%clk 0:02:32]}  Qxd6 {[%clk 0:02:03]} 15. Nxd5 {[%clk 0:02:14]}  Bxd5 {[%clk 0:01:46]} 16. f5 {[%clk 0:02:12]}  Qb6 {[%clk 0:01:26]} 17. fxe6 {[%clk 0:02:10]}  fxe6 {[%clk 0:01:16]} 18. Qh5+ {[%clk 0:02:06]}  Kf8 {[%clk 0:01:16]} 19. Kb1 {[%clk 0:01:21]}  Nf6 {[%clk 0:01:16]} 20. Qe2 {[%clk 0:01:20]}  Kf7 {[%clk 0:00:58]} 21. Qe1 {[%clk 0:01:18]}  Rhc8 {[%clk 0:00:53]} 22. Be2 {[%clk 0:01:17]}  Ne4 {[%clk 0:00:43]} 23. Bf3 {[%clk 0:01:11]}  Nxg3 {[%clk 0:00:22]} 24. Bxd5 {[%clk 0:00:58]}  exd5 {[%clk 0:00:21]} 25. Qxg3 {[%clk 0:00:48]}  Bf6 {[%clk 0:00:22]} 26. Nf5 {[%clk 0:00:39]}  Rc6 {[%clk 0:00:17]} 27. Rhf1 {[%clk 0:00:36]}  Rac8 {[%clk 0:00:12]} 28. Rxd5 {[%clk 0:00:22]}  Rxc2 {[%clk 0:00:08]} 29. Nd6+ {[%clk 0:00:20]}  Qxd6 {[%clk 0:00:08]} 30. Qxd6 {[%clk 0:00:19]}  Rxb2+ {[%clk 0:00:08]} 31. Ka1 {[%clk 0:00:19]}  Rbc2+ {[%clk 0:00:06]} 32. Rxf6+ {[%clk 0:00:19]}  gxf6 {[%clk 0:00:05]} 33. Rd2 {[%clk 0:00:15]}  Rc1+ {[%clk 0:00:03]} 34. Kb2 {[%clk 0:00:16]}  R1c6 {[%clk 0:00:03]} 35. Qd7+ {[%clk 0:00:16]}  Kg6 {[%clk 0:00:03]} 36. Qg4+ {[%clk 0:00:15]}  Kf7 {[%clk 0:00:03]} 37. Rd7+ {[%clk 0:00:15]}  Ke8 {[%clk 0:00:03]} 38. Rd2 {[%clk 0:00:14]}  Kf7 {[%clk 0:00:02]} 39. h4 {[%clk 0:00:13]}  Rc5 {[%clk 0:00:01]} 40. h5 {[%clk 0:00:13]} 1-0


[Site "https://www.chess.com"]

[Event "Titled Tuesday Blitz April 12 Early 2022"]
[White "Madaminov, Mukhiddin"]
[Black "Eynullayev, Atilla"]
[WhiteFideId "14210703"]
[BlackFideId "13413570"]
[WhiteElo "1916"]
[BlackElo "1936"]
[Result "1-0"]
[Round "06"]
[TimeControl "180+1"]
[Date "2022.04.13"]
[WhiteClock "0:00:33"]
[BlackClock "0:00:04"]

1. d4 {[%clk 0:03:00]}  Nf6 {[%clk 0:02:59]} 2. Nc3 {[%clk 0:03:00]}  d5 {[%clk 0:02:58]} 3. Bf4 {[%clk 0:02:59]}  e6 {[%clk 0:02:59]} 4. Nb5 {[%clk 0:02:59]}  Na6 {[%clk 0:02:59]} 5. e3 {[%clk 0:02:59]}  Be7 {[%clk 0:02:58]} 6. Nf3 {[%clk 0:02:57]}  O-O {[%clk 0:02:58]} 7. Bd3 {[%clk 0:02:57]}  c6 {[%clk 0:02:56]} 8. Nc3 {[%clk 0:02:57]}  c5 {[%clk 0:02:55]} 9. O-O {[%clk 0:02:52]}  Nb8 {[%clk 0:02:53]} 10. Nb5 {[%clk 0:02:48]}  Nc6 {[%clk 0:02:50]} 11. Nc7 {[%clk 0:02:46]}  Rb8 {[%clk 0:02:50]} 12. Nb5 {[%clk 0:02:46]}  Ra8 {[%clk 0:02:48]} 13. c4 {[%clk 0:02:27]}  dxc4 {[%clk 0:02:40]} 14. Bxc4 {[%clk 0:02:26]}  a6 {[%clk 0:02:40]} 15. Nc7 {[%clk 0:02:20]}  Ra7 {[%clk 0:02:41]} 16. d5 {[%clk 0:01:43]}  e5 {[%clk 0:02:09]} 17. dxc6 {[%clk 0:01:21]}  exf4 {[%clk 0:02:08]} 18. Qxd8 {[%clk 0:01:19]}  Bxd8 {[%clk 0:02:08]} 19. Nd5 {[%clk 0:01:12]}  b5 {[%clk 0:01:52]} 20. Nxf6+ {[%clk 0:01:09]}  Bxf6 {[%clk 0:01:52]} 21. Bd5 {[%clk 0:01:08]}  fxe3 {[%clk 0:01:28]} 22. fxe3 {[%clk 0:01:09]}  Bxb2 {[%clk 0:01:28]} 23. Rab1 {[%clk 0:01:09]}  Bf6 {[%clk 0:01:28]} 24. e4 {[%clk 0:01:05]}  Be6 {[%clk 0:01:17]} 25. Rfc1 {[%clk 0:01:05]}  c4 {[%clk 0:01:17]} 26. a4 {[%clk 0:01:04]}  Rb8 {[%clk 0:01:10]} 27. axb5 {[%clk 0:01:03]}  axb5 {[%clk 0:01:10]} 28. Rxc4 {[%clk 0:01:01]}  Rc7 {[%clk 0:00:33]} 29. Rcb4 {[%clk 0:00:58]}  g5 {[%clk 0:00:19]} 30. Rxb5 {[%clk 0:00:57]}  Rxb5 {[%clk 0:00:19]} 31. Rxb5 {[%clk 0:00:57]}  g4 {[%clk 0:00:20]} 32. Nd2 {[%clk 0:00:55]}  Bd4+ {[%clk 0:00:20]} 33. Kf1 {[%clk 0:00:54]}  Ra7 {[%clk 0:00:09]} 34. Nc4 {[%clk 0:00:48]}  g3 {[%clk 0:00:09]} 35. h3 {[%clk 0:00:35]}  Ra1+ {[%clk 0:00:07]} 36. Ke2 {[%clk 0:00:35]}  Bxh3 {[%clk 0:00:07]} 37. c7 {[%clk 0:00:34]}  Bg4+ {[%clk 0:00:06]} 38. Kd3 {[%clk 0:00:35]}  Rd1+ {[%clk 0:00:06]} 39. Kc2 {[%clk 0:00:35]}  Rg1 {[%clk 0:00:04]} 40. e5 {[%clk 0:00:33]}  Rxg2+ {[%clk 0:00:04]} 41. Bxg2 {[%clk 0:00:33]} 1-0


[Site "https://www.chess.com"]

[Event "Titled Tuesday Blitz April 12 Early 2022"]
[White "Maksimenko, Viktor"]
[Black "Murzin, Volodar"]
[WhiteFideId "13710478"]
[BlackFideId "44155573"]
[WhiteElo "2269"]
[BlackElo "2585"]
[Result "0-1"]
[Round "06"]
[TimeControl "180+1"]
[Date "2022.04.12"]
[WhiteClock "0:01:00"]
[BlackClock "0:00:28"]

1. d4 {[%clk 0:03:00]}  Nf6 {[%clk 0:02:58]} 2. c4 {[%clk 0:03:01]}  g6 {[%clk 0:02:57]} 3. Nc3 {[%clk 0:03:01]}  Bg7 {[%clk 0:02:57]} 4. e4 {[%clk 0:03:02]}  O-O {[%clk 0:02:54]} 5. Nf3 {[%clk 0:03:02]}  d6 {[%clk 0:02:54]} 6. h3 {[%clk 0:03:02]}  e5 {[%clk 0:02:52]} 7. d5 {[%clk 0:03:02]}  Na6 {[%clk 0:02:51]} 8. Be3 {[%clk 0:03:00]}  Nc5 {[%clk 0:02:51]} 9. Nd2 {[%clk 0:03:00]}  a5 {[%clk 0:02:49]} 10. g4 {[%clk 0:02:55]}  c6 {[%clk 0:02:45]} 11. Qc2 {[%clk 0:02:54]}  a4 {[%clk 0:02:40]} 12. O-O-O {[%clk 0:02:52]}  Qa5 {[%clk 0:02:39]} 13. a3 {[%clk 0:02:51]}  Bd7 {[%clk 0:02:37]} 14. Rg1 {[%clk 0:02:50]}  Rfc8 {[%clk 0:02:32]} 15. Be2 {[%clk 0:02:44]}  cxd5 {[%clk 0:02:26]} 16. exd5 {[%clk 0:02:43]}  b5 {[%clk 0:02:16]} 17. g5 {[%clk 0:02:14]}  Bf5 {[%clk 0:02:08]} 18. Qxf5 {[%clk 0:02:14]}  gxf5 {[%clk 0:01:52]} 19. gxf6 {[%clk 0:02:14]}  b4 {[%clk 0:01:53]} 20. Rxg7+ {[%clk 0:02:12]}  Kh8 {[%clk 0:01:53]} 21. Nb5 {[%clk 0:02:09]}  bxa3 {[%clk 0:01:52]} 22. Nxa3 {[%clk 0:02:04]}  Rab8 {[%clk 0:01:47]} 23. Bxc5 {[%clk 0:01:36]}  Qxc5 {[%clk 0:01:38]} 24. Ndb1 {[%clk 0:01:25]}  Qxf2 {[%clk 0:01:20]} 25. Nc3 {[%clk 0:01:25]}  Qe3+ {[%clk 0:01:11]} 26. Kc2 {[%clk 0:01:22]}  Rb3 {[%clk 0:00:58]} 27. Nab5 {[%clk 0:01:20]}  Rxb5 {[%clk 0:00:43]} 28. cxb5 {[%clk 0:01:12]}  Qxe2+ {[%clk 0:00:42]} 29. Rd2 {[%clk 0:01:12]}  Qxb5 {[%clk 0:00:42]} 30. Rdg2 {[%clk 0:01:12]}  Qb3+ {[%clk 0:00:39]} 31. Kc1 {[%clk 0:01:10]}  a3 {[%clk 0:00:39]} 32. Kb1 {[%clk 0:01:00]}  axb2 {[%clk 0:00:32]} 33. Na2 {[%clk 0:01:00]}  Qd1+ {[%clk 0:00:28]} 0-1


[Site "https://www.chess.com"]

[Event "Titled Tuesday Blitz April 12 Early 2022"]
[White "Maltsevskaya, Aleksandra"]
[Black "Bach, Ngoc Thuy Duong"]
[WhiteFideId "24174041"]
[BlackFideId "12408956"]
[WhiteElo "2235"]
[BlackElo "1862"]
[Result "1-0"]
[Round "06"]
[TimeControl "180+1"]
[Date "2022.04.13"]
[WhiteClock "0:00:04"]
[BlackClock "0:00:02"]

1. e4 {[%clk 0:02:50]}  c5 {[%clk 0:02:59]} 2. Nf3 {[%clk 0:02:49]}  d6 {[%clk 0:02:58]} 3. d4 {[%clk 0:02:49]}  cxd4 {[%clk 0:02:59]} 4. Nxd4 {[%clk 0:02:49]}  Nf6 {[%clk 0:02:59]} 5. Nc3 {[%clk 0:02:49]}  a6 {[%clk 0:02:59]} 6. Qd3 {[%clk 0:02:48]}  e5 {[%clk 0:02:57]} 7. Nf5 {[%clk 0:02:48]}  Bxf5 {[%clk 0:02:13]} 8. exf5 {[%clk 0:02:49]}  e4 {[%clk 0:02:12]} 9. Qc4 {[%clk 0:02:13]}  d5 {[%clk 0:02:10]} 10. Qb3 {[%clk 0:02:09]}  Nc6 {[%clk 0:01:25]} 11. Bg5 {[%clk 0:01:54]}  Bb4 {[%clk 0:00:31]} 12. O-O-O {[%clk 0:01:54]}  Bxc3 {[%clk 0:00:31]} 13. Qxc3 {[%clk 0:01:55]}  d4 {[%clk 0:00:21]} 14. Qb3 {[%clk 0:01:39]}  b5 {[%clk 0:00:16]} 15. f3 {[%clk 0:01:19]}  O-O {[%clk 0:00:12]} 16. fxe4 {[%clk 0:01:18]}  h6 {[%clk 0:00:10]} 17. Bh4 {[%clk 0:01:14]}  Qe7 {[%clk 0:00:10]} 18. Re1 {[%clk 0:00:55]}  Rac8 {[%clk 0:00:09]} 19. Kb1 {[%clk 0:00:51]}  Qe5 {[%clk 0:00:08]} 20. Bg3 {[%clk 0:00:50]}  Qc5 {[%clk 0:00:08]} 21. a3 {[%clk 0:00:15]}  Rfe8 {[%clk 0:00:08]} 22. Qd3 {[%clk 0:00:13]}  Nd7 {[%clk 0:00:07]} 23. Qd2 {[%clk 0:00:13]}  Nde5 {[%clk 0:00:07]} 24. Bd3 {[%clk 0:00:13]}  Nc4 {[%clk 0:00:07]} 25. Qc1 {[%clk 0:00:12]}  N6e5 {[%clk 0:00:07]} 26. h3 {[%clk 0:00:10]}  a5 {[%clk 0:00:07]} 27. Rhf1 {[%clk 0:00:09]}  b4 {[%clk 0:00:07]} 28. a4 {[%clk 0:00:09]}  Qc6 {[%clk 0:00:05]} 29. Bxe5 {[%clk 0:00:07]}  Nxe5 {[%clk 0:00:05]} 30. Bb5 {[%clk 0:00:07]}  Qc5 {[%clk 0:00:04]} 31. Bxe8 {[%clk 0:00:08]}  Rxe8 {[%clk 0:00:05]} 32. f6 {[%clk 0:00:07]}  Qc6 {[%clk 0:00:04]} 33. fxg7 {[%clk 0:00:07]}  Kxg7 {[%clk 0:00:04]} 34. Rf5 {[%clk 0:00:04]}  Qxa4 {[%clk 0:00:03]} 35. Ref1 {[%clk 0:00:04]}  Re6 {[%clk 0:00:02]} 36. Qf4 {[%clk 0:00:04]}  Qb5 {[%clk 0:00:02]} 37. Rxf7+ {[%clk 0:00:04]} 1-0


[Site "https://www.chess.com"]

[Event "Titled Tuesday Blitz April 12 Early 2022"]
[White "Manolache, Marius"]
[Black "Sailer, Mike"]
[WhiteFideId "1201530"]
[BlackFideId "2012901"]
[WhiteElo "2364"]
[BlackElo "2109"]
[Result "1-0"]
[Round "06"]
[TimeControl "180+1"]
[Date "2022.04.13"]
[WhiteClock "0:01:06"]
[BlackClock "0:00:30"]

1. d4 {[%clk 0:03:00]}  d5 {[%clk 0:02:53]} 2. c4 {[%clk 0:03:00]}  Bf5 {[%clk 0:02:52]} 3. Nc3 {[%clk 0:02:58]}  e6 {[%clk 0:02:50]} 4. a3 {[%clk 0:02:56]}  Nf6 {[%clk 0:02:49]} 5. Nf3 {[%clk 0:02:55]}  Be7 {[%clk 0:02:48]} 6. Bg5 {[%clk 0:02:52]}  O-O {[%clk 0:02:46]} 7. e3 {[%clk 0:02:52]}  c6 {[%clk 0:02:45]} 8. h3 {[%clk 0:02:48]}  h6 {[%clk 0:02:45]} 9. Bh4 {[%clk 0:02:47]}  Nbd7 {[%clk 0:02:45]} 10. Be2 {[%clk 0:02:46]}  a6 {[%clk 0:02:45]} 11. c5 {[%clk 0:02:40]}  Ne4 {[%clk 0:02:39]} 12. Bxe7 {[%clk 0:02:32]}  Qxe7 {[%clk 0:02:39]} 13. O-O {[%clk 0:02:27]}  e5 {[%clk 0:02:39]} 14. Rc1 {[%clk 0:02:15]}  Rfe8 {[%clk 0:02:28]} 15. Re1 {[%clk 0:02:14]}  b6 {[%clk 0:02:18]} 16. cxb6 {[%clk 0:02:12]}  exd4 {[%clk 0:02:18]} 17. Nxd4 {[%clk 0:02:10]}  Qf6 {[%clk 0:02:12]} 18. Nxf5 {[%clk 0:02:05]}  Qxf5 {[%clk 0:02:12]} 19. Nxe4 {[%clk 0:02:04]}  Qxe4 {[%clk 0:01:55]} 20. Rxc6 {[%clk 0:02:02]}  Ne5 {[%clk 0:01:47]} 21. Rc1 {[%clk 0:01:59]}  Re6 {[%clk 0:01:41]} 22. Qd4 {[%clk 0:01:50]}  Rb8 {[%clk 0:01:25]} 23. Qxe4 {[%clk 0:01:49]}  dxe4 {[%clk 0:01:25]} 24. Rc5 {[%clk 0:01:45]}  Rbxb6 {[%clk 0:01:23]} 25. b4 {[%clk 0:01:45]}  Kh7 {[%clk 0:01:06]} 26. Rd1 {[%clk 0:01:39]}  Kg6 {[%clk 0:00:56]} 27. Rd4 {[%clk 0:01:37]}  f5 {[%clk 0:00:55]} 28. Kh2 {[%clk 0:01:31]}  Kf6 {[%clk 0:00:52]} 29. Rdd5 {[%clk 0:01:23]}  g5 {[%clk 0:00:43]} 30. Ra5 {[%clk 0:01:10]}  Nc6 {[%clk 0:00:35]} 31. Rxf5+ {[%clk 0:01:07]}  Kg6 {[%clk 0:00:34]} 32. Rac5 {[%clk 0:01:07]}  Ne5 {[%clk 0:00:31]} 33. Rfxe5 {[%clk 0:01:06]}  Rxe5 {[%clk 0:00:30]} 34. Rxe5 {[%clk 0:01:06]} 1-0


[Site "https://www.chess.com"]